fUST/lending_fUST_20250806
["ID","MTS","AMOUNT","RATE_DAILY","PERIOD"]
[377477153,1754422244444,-460.0,0.00029315,2]
[377477155,1754422244454,-460.0,0.00029315,2]
[377477157,1754422244464,-152.86,0.00029407,15]
[377477159,1754422244474,-160.0,0.00029415,2]
[377477161,1754422244484,-216.4206905,0.00029415,2]
[377477163,1754422244494,-12655.02535889,0.00029423,2]
[377477165,1754422244504,-160.0,0.00029423,2]
[377477167,1754422244515,-160.0,0.00029423,2]
[377477169,1754422244524,-461.15695721,0.00029423,2]
[377477171,1754422244534,-231.72586818,0.00029423,2]
[377477173,1754422244544,-160.0,0.00029423,2]
[377477175,1754422244555,-160.0,0.00029423,2]
[377477177,1754422244565,-160.0,0.00029423,2]
[377477179,1754422244575,-160.0,0.00029423,2]
[377477181,1754422244585,-152.93,0.00029507,15]
[377477183,1754422244595,-1289.1213944,0.00029569,2]
[377477185,1754422244606,-460.0,0.00029589,2]
[377477188,1754422244616,-685.83,0.00029589,2]
[377477190,1754422244625,-460.0,0.00029589,2]
[377477192,1754422244635,-285.42914648,0.00029589,2]
[377477194,1754422244645,-460.0,0.00029589,2]
[377477196,1754422244655,-460.0,0.00029589,2]
[377477198,1754422244666,-460.0,0.00029589,2]
[377477200,1754422244676,-460.0,0.00029589,2]
[377477202,1754422244686,-857.07,0.00029589,2]
[377477218,1754422244822,-655.71,0.00029589,2]
[377477220,1754422244833,-460.0,0.00029589,2]
[377477222,1754422244843,-460.0,0.00029589,2]
[377477224,1754422244851,-499.12,0.00029589,2]
[377477226,1754422244861,-460.0,0.00029589,2]
[377477228,1754422244870,-667.36,0.00029589,2]
[377477230,1754422244879,-6541.71,0.00029589,2]
[377477232,1754422244889,-460.0,0.00029589,2]
[377477234,1754422244898,-460.0,0.00029589,2]
[377477236,1754422244908,-500.0,0.00029616,5]
[377477238,1754422244918,-1500.0,0.00029616,5]
[377477240,1754422244928,-460.0,0.00029863,2]
[377477242,1754422244937,-685.83,0.00029863,2]
[377477244,1754422244946,-460.0,0.00029863,2]
[377477246,1754422244956,-460.0,0.00029863,2]
[377477248,1754422244965,-460.0,0.00029863,2]
[377477250,1754422244975,-460.0,0.00029863,2]
[377477252,1754422244984,-460.0,0.00029863,2]
[377477254,1754422244994,-857.07,0.00029863,2]
[377477255,1754422245003,-655.71,0.00029863,2]
[377477257,1754422245015,-460.0,0.00029863,2]
[377477259,1754422245025,-460.0,0.00029863,2]
[377477261,1754422245034,-499.12,0.00029863,2]
[377477263,1754422245043,-460.0,0.00029863,2]
[377477265,1754422245054,-667.36,0.00029863,2]
[377477267,1754422245063,-6541.71,0.00029863,2]
[377477269,1754422245072,-460.0,0.00029863,2]
[377477271,1754422245081,-460.0,0.00029863,2]
[377477273,1754422245092,-133352.97074851,0.000299,2]
[377477275,1754422245101,-2578.2427888,0.0002999,2]
[377477277,1754422245110,-3000.0,0.00029996,3]
[377477279,1754422245126,-99212.71022175,0.0003,30]
[377477290,1754422245217,-791.55136708,0.0003,30]
[377477292,1754422245236,-151.61367767,0.0003,14]
[377477294,1754422245247,-151.0,0.0003,14]
[377477296,1754422245258,-151.0,0.0003,14]
[377477298,1754422245268,-151.0,0.0003,14]
[377477300,1754422245278,-151.0,0.0003,14]
[377477302,1754422245287,-151.0,0.0003,14]
[377477304,1754422245297,-293.9572123,0.0003,14]
[377477306,1754422245306,-1289.1213944,0.00030126,2]
[377477308,1754422245317,-10177.92685651,0.0003013,2]
[377477310,1754422245326,-9788.24634107,0.0003013,5]
[377477312,1754422245338,-16029.19007817,0.0003013,5]
[377477314,1754422245350,-367.38755231,0.0003013,5]
[377477316,1754422245362,-2968.3,0.0003013,5]
[377477320,1754422245373,-7012.22682137,0.0003013,5]
[377477322,1754422245384,-14775.11568863,0.0003013,5]
[377477324,1754422245395,-379.2939947,0.0003013,5]
[377477326,1754422245407,-3469.52195489,0.0003013,5]
[377480307,1754422921148,8884.02576624,0.00025205,2]
[377480308,1754422921175,6895.49506548,0.00025205,2]
[377480309,1754422921331,13104.50493452,0.00025205,2]
[377480310,1754422921368,2675.01589698,0.00025205,2]
[377480311,1754422921420,15779.5208315,0.00025205,2]
[377480312,1754422922298,1545.46327152,0.00025205,2]
[377480313,1754422922325,14234.05755998,0.00025205,2]
[377480314,1754422922393,5765.94244002,0.00025205,2]
[377480315,1754422922421,10013.57839148,0.00025205,2]
[377480316,1754422922509,9986.42160852,0.00025205,2]
[377480317,1754422922537,5793.09922298,0.00025205,2]
[377480318,1754422922601,14206.90077702,0.00025205,2]
[377480319,1754422922626,1572.62005448,0.00025205,2]
[377480320,1754422922684,15779.5208315,0.00025205,2]
[377480321,1754422922770,2647.85911402,0.00025455,3]
[377480322,1754422922797,13131.66171748,0.00025455,3]
[377480323,1754422942986,5000.0,0.00025652,2]
[377480325,1754422958161,1868.33828252,0.00025652,2]
[377480326,1754422958184,3131.66171748,0.00025652,2]
[377480327,1754422973757,5000.0,0.00025652,2]
[377480328,1754422989428,5000.0,0.00025652,2]
[377480329,1754423004696,5000.0,0.00025652,2]
[377480330,1754423020342,1868.33828252,0.00025652,2]
[377480331,1754423020364,3131.66171748,0.00025652,2]
[377480333,1754423036701,5000.0,0.00025652,2]
[377480334,1754423053969,5000.0,0.00025652,2]
[377480337,1754423060845,306.726484,0.00013699,2]
[377480338,1754423061310,306.726484,0.00020187,2]
[377480340,1754423071547,5000.0,0.00025652,2]
[377480341,1754423079398,1254.88531452,0.00025652,2]
[377480342,1754423079421,3475.79524823,0.00025652,2]
[377480343,1754423088716,5000.0,0.00025652,2]
[377480344,1754423104620,5000.0,0.00025652,2]
[377480345,1754423120473,5000.0,0.00025652,2]
[377480346,1754423125191,-164.05477686,0.00025938,2]
[377480347,1754423125214,-50.78271437,0.00026037,2]
[377480348,1754423135714,1524.20475177,0.00025652,2]
[377480349,1754423135736,3475.79524823,0.00025652,2]
[377480350,1754423151408,4057.03241704,0.00025652,2]
[377480359,1754423179709,150.0,0.00025253,2]
[377480360,1754423189845,160.0,0.0002,3]
[377480361,1754423190658,160.0,0.0002,3]
[377480362,1754423191069,160.0,0.0002,7]
[377480376,1754423233749,737.54967498,0.00025255,2]
[377480378,1754423235913,186.8099666,0.00025037,2]
[377480382,1754423241521,-214.83749123,0.00025938,2]
[377480384,1754423264693,10000.0,0.00025037,2]
[377480388,1754423272002,912.81269315,0.00025652,2]
[377480389,1754423272039,4087.18730685,0.00025652,2]
[377480393,1754423283028,-214.83749123,0.00025938,2]
[377480394,1754423287667,5000.0,0.00025652,2]
[377480395,1754423303327,5000.0,0.00025652,2]
[377480396,1754423317429,666.0,0.00025034,2]
[377480397,1754423319062,5000.0,0.00025652,2]
[377480398,1754423334976,246.81269315,0.00025652,2]
[377480399,1754423334998,4753.18730685,0.00025652,2]
[377480404,1754423351180,5000.0,0.00025652,2]
[377480408,1754423365665,919.762563,0.00023552,2]
[377480409,1754423367416,501.38211044,0.00025652,2]
[377480410,1754423375088,1404.4116114,0.00025033,2]
[377480411,1754423375852,-214.83749123,0.00026026,10]
[377480412,1754423432072,-2071.2875119,0.0002593,2]
[377480413,1754423432126,-585.18556875,0.0002593,2]
[377480414,1754423432136,-156.90980111,0.00026004,2]
[377480415,1754423432146,-272.11,0.00026026,10]
[377480417,1754423432161,-310.68,0.00026026,10]
[377480419,1754423432170,-258.9,0.00026026,10]
[377480420,1754423432180,-215.75,0.00026026,10]
[377480421,1754423432190,-1200.0,0.00026028,2]
[377480422,1754423432200,-300.0,0.00026028,2]
[377480423,1754423432209,-300.0,0.00026028,2]
[377480424,1754423432219,-300.0,0.00026028,2]
[377480425,1754423432228,-300.0,0.00026028,2]
[377480427,1754423432237,-220.3946588,0.00026028,2]
[377480429,1754423432247,-502.65015297,0.00026029,2]
[377480431,1754423432256,-500.0,0.00026029,2]
[377480433,1754423432265,-500.0,0.00026029,2]
[377480434,1754423432275,-500.0,0.00026029,2]
[377480437,1754423432284,-161.32437421,0.00026029,2]
[377480439,1754423432294,-500.0,0.00026029,2]
[377480441,1754423432303,-500.0,0.00026029,2]
[377480443,1754423432312,-500.0,0.00026029,2]
[377480445,1754423432322,-500.0,0.00026029,2]
[377480447,1754423432330,-500.0,0.00026029,2]
[377480449,1754423432339,-500.0,0.00026029,2]
[377480451,1754423432348,-500.0,0.00026029,2]
[377480453,1754423432357,-417.82124285,0.00026029,2]
[377480455,1754423432366,-500.0,0.00026029,2]
[377480457,1754423432378,-195.49995372,0.00026029,2]
[377480459,1754423432387,-500.0,0.00026029,2]
[377480461,1754423432396,-500.0,0.00026029,2]
[377480463,1754423432410,-500.0,0.00026029,2]
[377480465,1754423432422,-500.0,0.00026029,2]
[377480467,1754423432431,-500.0,0.00026029,2]
[377480469,1754423432440,-500.0,0.00026029,2]
[377480471,1754423432450,-500.0,0.00026029,2]
[377480473,1754423432459,-52.37858907,0.00026029,2]
[377480475,1754423432471,-447.62141093,0.00026029,2]
[377480477,1754423432480,-500.0,0.00026029,2]
[377480479,1754423432489,-500.0,0.00026029,2]
[377480481,1754423432498,-500.0,0.00026029,2]
[377480483,1754423432507,-500.0,0.00026029,2]
[377480485,1754423432516,-500.0,0.00026029,2]
[377480487,1754423432525,-500.0,0.00026029,2]
[377480488,1754423432534,-500.0,0.00026029,2]
[377480491,1754423432544,-500.0,0.00026029,2]
[377480492,1754423432554,-500.0,0.00026029,2]
[377480494,1754423432563,-500.0,0.00026029,2]
[377480496,1754423432572,-500.0,0.00026029,2]
[377480498,1754423432581,-500.0,0.00026029,2]
[377480500,1754423432589,-500.0,0.00026029,2]
[377480501,1754423432598,-272.52860501,0.00026029,2]
[377480502,1754423432605,-500.0,0.00026029,2]
[377480503,1754423432613,-500.0,0.00026029,2]
[377480504,1754423432622,-500.0,0.00026029,2]
[377480506,1754423432631,-500.0,0.00026029,2]
[377480508,1754423432640,-500.0,0.00026029,2]
[377480509,1754423432649,-500.0,0.00026029,2]
[377480511,1754423432661,-500.0,0.00026029,2]
[377480513,1754423432671,-500.0,0.00026029,2]
[377480515,1754423432680,-500.0,0.00026029,2]
[377480517,1754423432689,-500.0,0.00026029,2]
[377480519,1754423432698,-500.0,0.00026029,2]
[377480521,1754423432707,-366.82901602,0.00026029,2]
[377480523,1754423432717,-500.0,0.00026029,2]
[377480525,1754423432726,-500.0,0.00026029,2]
[377480528,1754423432737,-500.0,0.00026029,2]
[377480530,1754423432749,-500.0,0.00026029,2]
[377480532,1754423432762,-500.0,0.00026029,2]
[377480535,1754423432778,-500.0,0.00026029,2]
[377480537,1754423432790,-500.0,0.00026029,2]
[377480539,1754423432805,-177.60974618,0.00026029,2]
[377480542,1754423432816,-500.0,0.00026029,2]
[377480543,1754423432826,-500.0,0.00026029,2]
[377480546,1754423432838,-500.0,0.00026029,2]
[377480548,1754423432850,-6432.07741108,0.0002603,2]
[377480593,1754423437994,-157.86802287,0.00026029,2]
[377480594,1754423438006,-500.0,0.00026029,2]
[377480596,1754423438018,-4675.50272854,0.0002603,2]
[377480598,1754423438034,-9546.16112588,0.0002603,2]
[377480600,1754423438046,-1391.24576982,0.0002603,2]
[377480603,1754423438061,-102.79569371,0.0002603,2]
[377480605,1754423438074,-1200.0,0.00026036,2]
[377480606,1754423438087,-50000.0,0.00026036,2]
[377480607,1754423438100,-162.017,0.00026038,12]
[377480608,1754423438121,-24900.0,0.0002604,2]
[377480609,1754423438133,-500.0,0.00026073,2]
[377480610,1754423438144,-500.0,0.00026073,2]
[377480611,1754423438155,-652.807443,0.00026117,2]
[377480612,1754423438168,-354.86650196,0.0002617,2]
[377480613,1754423438179,-164.381593,0.00026174,2]
[377480614,1754423438190,-306.726484,0.00026676,2]
[377480616,1754423438201,-15779.5208315,0.00026762,6]
[377480617,1754423438212,-5328.15778978,0.00027077,2]
[377480619,1754423438223,-1517.02598451,0.00027077,2]
[377480621,1754423438234,-19223.88785355,0.00027087,3]
[377480622,1754423438244,-371.92,0.00027167,3]
[377480623,1754423438256,-165229.930124,0.00027177,2]
[377480624,1754423438267,-11952.3317082,0.00027177,2]
[377480625,1754423438277,-370000.0,0.00027187,2]
[377480626,1754423438288,-20653.7412655,0.00027387,2]
[377480627,1754423438299,-1494.04146353,0.00027387,2]
[377480628,1754423438310,-3430.18377373,0.0002739,2]
[377480629,1754423438321,-460.0,0.00027397,2]
[377480630,1754423438332,-460.0,0.00027397,2]
[377480631,1754423438343,-460.0,0.00027397,2]
[377480632,1754423438354,-460.0,0.00027397,2]
[377480633,1754423438371,-499.95,0.00027397,2]
[377480634,1754423438383,-460.0,0.00027397,2]
[377480635,1754423438395,-460.0,0.00027397,2]
[377480636,1754423438407,-460.0,0.00027397,2]
[377480637,1754423438422,-181.77537422,0.00027397,2]
[377480638,1754423438434,-460.0,0.00027397,2]
[377480639,1754423438446,-460.0,0.00027397,2]
[377480640,1754423438458,-460.0,0.00027397,2]
[377480641,1754423438470,-460.0,0.00027397,2]
[377480642,1754423438482,-846.84,0.00027397,2]
[377480643,1754423438492,-460.0,0.00027397,2]
[377480644,1754423438504,-460.0,0.00027397,2]
[377480645,1754423438515,-553.6,0.00027397,2]
[377480646,1754423438526,-460.0,0.00027397,2]
[377480647,1754423438537,-460.0,0.00027397,2]
[377480648,1754423438549,-460.0,0.00027397,2]
[377480649,1754423438561,-460.0,0.00027397,2]
[377480650,1754423438572,-460.0,0.00027397,2]
[377480651,1754423438584,-460.0,0.00027397,2]
[377480652,1754423438595,-460.0,0.00027397,2]
[377480653,1754423438606,-460.0,0.00027397,2]
[377480654,1754423438617,-460.0,0.00027397,2]
[377480655,1754423438628,-460.0,0.00027397,2]
[377480656,1754423438639,-460.0,0.00027397,2]
[377480657,1754423438649,-460.0,0.00027397,2]
[377480658,1754423438660,-460.0,0.00027397,2]
[377480659,1754423438673,-460.0,0.00027397,2]
[377480660,1754423438684,-460.0,0.00027397,2]
[377480661,1754423438696,-460.0,0.00027397,2]
[377480662,1754423438707,-460.0,0.00027397,2]
[377480663,1754423438718,-460.0,0.00027397,2]
[377480664,1754423438728,-460.0,0.00027397,2]
[377480665,1754423438740,-493.57,0.00027397,2]
[377480666,1754423438751,-2870.23,0.00027397,2]
[377480667,1754423438763,-460.0,0.00027397,2]
[377480668,1754423438774,-460.0,0.00027397,2]
[377480669,1754423438785,-19201.22,0.00027397,2]
[377480670,1754423438963,-460.0,0.00027397,2]
[377480671,1754423438978,-460.0,0.00027397,2]
[377480672,1754423438987,-460.0,0.00027671,2]
[377480673,1754423438996,-168.76,0.00027671,2]
[377480674,1754423439006,-460.0,0.00027671,2]
[377480675,1754423439015,-460.0,0.00027671,2]
[377480676,1754423439025,-499.95,0.00027671,2]
[377480677,1754423439035,-460.0,0.00027671,2]
[377480678,1754423439045,-460.0,0.00027671,2]
[377480679,1754423439054,-460.0,0.00027671,2]
[377480680,1754423439063,-460.0,0.00027671,2]
[377480681,1754423439073,-460.0,0.00027671,2]
[377480682,1754423439082,-460.0,0.00027671,2]
[377480683,1754423439091,-460.0,0.00027671,2]
[377480684,1754423439101,-846.84,0.00027671,2]
[377480685,1754423439110,-460.0,0.00027671,2]
[377480686,1754423439121,-460.0,0.00027671,2]
[377480687,1754423439131,-553.6,0.00027671,2]
[377480688,1754423439140,-460.0,0.00027671,2]
[377480689,1754423439150,-460.0,0.00027671,2]
[377480690,1754423439159,-460.0,0.00027671,2]
[377480691,1754423439170,-460.0,0.00027671,2]
[377480692,1754423439180,-460.0,0.00027671,2]
[377480693,1754423439190,-460.0,0.00027671,2]
[377480694,1754423439199,-460.0,0.00027671,2]
[377480695,1754423439208,-460.0,0.00027671,2]
[377480696,1754423439218,-460.0,0.00027671,2]
[377480697,1754423439227,-460.0,0.00027671,2]
[377480698,1754423439236,-460.0,0.00027671,2]
[377480699,1754423439246,-460.0,0.00027671,2]
[377480700,1754423439255,-460.0,0.00027671,2]
[377480701,1754423439265,-460.0,0.00027671,2]
[377480702,1754423439275,-460.0,0.00027671,2]
[377480703,1754423439284,-460.0,0.00027671,2]
[377480704,1754423439294,-460.0,0.00027671,2]
[377480705,1754423439304,-460.0,0.00027671,2]
[377480706,1754423439314,-460.0,0.00027671,2]
[377480707,1754423439323,-493.57,0.00027671,2]
[377480708,1754423439332,-2870.23,0.00027671,2]
[377480709,1754423439341,-460.0,0.00027671,2]
[377480710,1754423439350,-460.0,0.00027671,2]
[377480711,1754423439359,-19201.22,0.00027671,2]
[377480712,1754423439368,-460.0,0.00027671,2]
[377480713,1754423439381,-20653.7412655,0.00027935,2]
[377480714,1754423439390,-1494.04146353,0.00027935,2]
[377480715,1754423439399,-460.0,0.00027945,2]
[377480717,1754423439408,-460.0,0.00027945,2]
[377480718,1754423439420,-460.0,0.00027945,2]
[377480719,1754423439430,-499.95,0.00027945,2]
[377480720,1754423439439,-460.0,0.00027945,2]
[377480721,1754423439450,-460.0,0.00027945,2]
[377480722,1754423439459,-460.0,0.00027945,2]
[377480723,1754423439468,-460.0,0.00027945,2]
[377480724,1754423439478,-460.0,0.00027945,2]
[377480725,1754423439487,-460.0,0.00027945,2]
[377480726,1754423439497,-460.0,0.00027945,2]
[377480727,1754423439507,-846.84,0.00027945,2]
[377480728,1754423439519,-460.0,0.00027945,2]
[377480729,1754423439529,-460.0,0.00027945,2]
[377480730,1754423439540,-553.6,0.00027945,2]
[377480731,1754423439549,-460.0,0.00027945,2]
[377480732,1754423439558,-460.0,0.00027945,2]
[377480733,1754423439568,-460.0,0.00027945,2]
[377480734,1754423439577,-460.0,0.00027945,2]
[377480735,1754423439586,-460.0,0.00027945,2]
[377480736,1754423439596,-460.0,0.00027945,2]
[377480737,1754423439605,-460.0,0.00027945,2]
[377480738,1754423439614,-460.0,0.00027945,2]
[377480739,1754423439624,-460.0,0.00027945,2]
[377480740,1754423439633,-460.0,0.00027945,2]
[377480741,1754423439643,-460.0,0.00027945,2]
[377480742,1754423439652,-460.0,0.00027945,2]
[377480743,1754423439663,-460.0,0.00027945,2]
[377480746,1754423439683,-460.0,0.00027945,2]
[377480747,1754423439694,-460.0,0.00027945,2]
[377480748,1754423439704,-460.0,0.00027945,2]
[377480749,1754423439715,-460.0,0.00027945,2]
[377480750,1754423439726,-460.0,0.00027945,2]
[377480751,1754423439736,-493.57,0.00027945,2]
[377480752,1754423439746,-2870.23,0.00027945,2]
[377480753,1754423439756,-460.0,0.00027945,2]
[377480754,1754423439766,-460.0,0.00027945,2]
[377480755,1754423439776,-19201.22,0.00027945,2]
[377480756,1754423439786,-460.0,0.00027945,2]
[377480757,1754423439796,-15779.5208315,0.00028069,9]
[377480758,1754423439806,-1517.02598451,0.00028108,2]
[377480759,1754423439816,-420.0,0.00028167,2]
[377480760,1754423439826,-296.0,0.00028167,2]
[377480762,1754423439835,-232.0,0.00028167,2]
[377480764,1754423439845,-804.0,0.00028176,2]
[377480766,1754423439854,-600.0,0.00028202,2]
[377480767,1754423439865,-1494.04146353,0.00028209,2]
[377480768,1754423439875,-460.0,0.00028219,2]
[377480769,1754423439885,-460.0,0.00028219,2]
[377480770,1754423439895,-499.95,0.00028219,2]
[377480771,1754423439905,-555.14605655,0.00028219,2]
[377480772,1754423439918,-167.9,0.00028219,2]
[377480774,1754423439928,-460.0,0.00028219,2]
[377480775,1754423439938,-460.0,0.00028219,2]
[377480776,1754423439947,-207.72501109,0.00028219,2]
[377480777,1754423439957,-846.84,0.00028219,2]
[377480778,1754423439967,-460.0,0.00028219,2]
[377480779,1754423439976,-460.0,0.00028219,2]
[377480780,1754423439986,-553.6,0.00028219,2]
[377480781,1754423439996,-460.0,0.00028219,2]
[377480782,1754423440006,-460.0,0.00028219,2]
[377480783,1754423440015,-460.0,0.00028219,2]
[377480784,1754423440025,-460.0,0.00028219,2]
[377480785,1754423440035,-460.0,0.00028219,2]
[377480786,1754423440045,-460.0,0.00028219,2]
[377480787,1754423440055,-460.0,0.00028219,2]
[377480788,1754423440065,-460.0,0.00028219,2]
[377480789,1754423440075,-460.0,0.00028219,2]
[377480790,1754423440085,-460.0,0.00028219,2]
[377480791,1754423440094,-460.0,0.00028219,2]
[377480792,1754423440104,-460.0,0.00028219,2]
[377480793,1754423440114,-460.0,0.00028219,2]
[377480794,1754423440125,-460.0,0.00028219,2]
[377480795,1754423440135,-460.0,0.00028219,2]
[377480796,1754423440146,-460.0,0.00028219,2]
[377480797,1754423440156,-460.0,0.00028219,2]
[377480798,1754423440167,-460.0,0.00028219,2]
[377480799,1754423440177,-493.57,0.00028219,2]
[377480800,1754423440186,-2870.23,0.00028219,2]
[377480801,1754423440196,-460.0,0.00028219,2]
[377480802,1754423440206,-460.0,0.00028219,2]
[377480803,1754423440216,-19201.22,0.00028219,2]
[377480804,1754423440226,-460.0,0.00028219,2]
[377480805,1754423440236,-1200.0,0.00028293,2]
[377480806,1754423440245,-1494.04146353,0.00028483,2]
[377480807,1754423440256,-460.0,0.00028493,2]
[377480808,1754423440266,-460.0,0.00028493,2]
[377480809,1754423440275,-499.95,0.00028493,2]
[377480810,1754423440285,-460.0,0.00028493,2]
[377480811,1754423440298,-460.0,0.00028493,2]
[377480812,1754423440308,-846.84,0.00028493,2]
[377480813,1754423440318,-460.0,0.00028493,2]
[377480814,1754423440328,-460.0,0.00028493,2]
[377480815,1754423440338,-553.6,0.00028493,2]
[377480816,1754423440347,-460.0,0.00028493,2]
[377480817,1754423440357,-460.0,0.00028493,2]
[377480818,1754423440367,-460.0,0.00028493,2]
[377480819,1754423440379,-460.0,0.00028493,2]
[377480820,1754423440389,-527.16578998,0.00028493,2]
[377480821,1754423440398,-460.0,0.00028493,2]
[377480822,1754423440408,-460.0,0.00028493,2]
[377480823,1754423440421,-460.0,0.00028493,2]
[377480824,1754423440431,-460.0,0.00028493,2]
[377480825,1754423440441,-460.0,0.00028493,2]
[377480826,1754423440451,-460.0,0.00028493,2]
[377480827,1754423440462,-460.0,0.00028493,2]
[377480828,1754423440474,-460.0,0.00028493,2]
[377480829,1754423440485,-460.0,0.00028493,2]
[377480830,1754423440494,-460.0,0.00028493,2]
[377480831,1754423440504,-460.0,0.00028493,2]
[377480832,1754423440513,-460.0,0.00028493,2]
[377480833,1754423440522,-460.0,0.00028493,2]
[377480834,1754423440532,-493.57,0.00028493,2]
[377480835,1754423440541,-2870.23,0.00028493,2]
[377480836,1754423440551,-460.0,0.00028493,2]
[377480837,1754423440561,-460.0,0.00028493,2]
[377480838,1754423440571,-19201.22,0.00028493,2]
[377480839,1754423440583,-460.0,0.00028493,2]
[377480840,1754423440594,-919.762563,0.00028552,2]
[377480841,1754423440605,-174.52,0.0002856,15]
[377480842,1754423440614,-200.0,0.00028632,15]
[377480843,1754423440624,-300.0,0.00028632,15]
[377480844,1754423440634,-174.52,0.0002866,15]
[377480845,1754423440643,-151.0,0.00028728,2]
[377480846,1754423440653,-174.52,0.0002876,15]
[377480847,1754423440664,-460.0,0.00028767,2]
[377480848,1754423440674,-151.98,0.00028767,2]
[377480849,1754423440684,-499.95,0.00028767,2]
[377480850,1754423440693,-460.0,0.00028767,2]
[377480851,1754423440703,-460.0,0.00028767,2]
[377480852,1754423440715,-846.84,0.00028767,2]
[377480853,1754423440725,-460.0,0.00028767,2]
[377480854,1754423440735,-156.52975813,0.00028767,2]
[377480855,1754423440747,-553.6,0.00028767,2]
[377480856,1754423440757,-460.0,0.00028767,2]
[377480857,1754423440768,-460.0,0.00028767,2]
[377480858,1754423440778,-460.0,0.00028767,2]
[377480859,1754423440788,-460.0,0.00028767,2]
[377480860,1754423440799,-489.650458,0.00028767,2]
[377480861,1754423440810,-460.0,0.00028767,2]
[377480862,1754423440820,-460.0,0.00028767,2]
[377480863,1754423440830,-460.0,0.00028767,2]
[377480864,1754423440841,-460.0,0.00028767,2]
[377480865,1754423440851,-460.0,0.00028767,2]
[377480866,1754423440862,-460.0,0.00028767,2]
[377480867,1754423440873,-460.0,0.00028767,2]
[377480868,1754423440884,-460.0,0.00028767,2]
[377480869,1754423440894,-460.0,0.00028767,2]
[377480870,1754423440903,-460.0,0.00028767,2]
[377480871,1754423440914,-460.0,0.00028767,2]
[377480872,1754423440924,-460.0,0.00028767,2]
[377480873,1754423440933,-493.57,0.00028767,2]
[377480874,1754423440943,-2870.23,0.00028767,2]
[377480875,1754423440953,-460.0,0.00028767,2]
[377480876,1754423440963,-460.0,0.00028767,2]
[377480877,1754423440973,-19201.22,0.00028767,2]
[377480878,1754423440983,-460.0,0.00028767,2]
[377480879,1754423440992,-174.52,0.0002886,15]
[377480880,1754423441002,-150.0,0.000289,3]
[377480881,1754423441011,-174.54820838,0.0002896,15]
[377480882,1754423441021,-460.0,0.00029041,2]
[377480883,1754423441030,-499.95,0.00029041,2]
[377480884,1754423441040,-460.0,0.00029041,2]
[377480885,1754423441050,-460.0,0.00029041,2]
[377480886,1754423441060,-846.84,0.00029041,2]
[377480887,1754423441069,-460.0,0.00029041,2]
[377480888,1754423441078,-553.6,0.00029041,2]
[377480889,1754423441088,-460.0,0.00029041,2]
[377480890,1754423441097,-460.0,0.00029041,2]
[377480891,1754423441107,-460.0,0.00029041,2]
[377480892,1754423441116,-460.0,0.00029041,2]
[377480893,1754423441126,-460.0,0.00029041,2]
[377480894,1754423441135,-460.0,0.00029041,2]
[377480895,1754423441145,-591.18234179,0.00029041,2]
[377480896,1754423441154,-460.0,0.00029041,2]
[377480897,1754423441164,-460.0,0.00029041,2]